fUST/lending_fUST_20240719
["ID","MTS","AMOUNT","RATE_DAILY","PERIOD"]
[332610166,1721343061849,-500.0,0.00015851,2]
[332610167,1721343061858,-196.70550026,0.00015851,2]
[332610170,1721343290854,886.94388172,9.999e-05,2]
[332610171,1721343337343,801.97393226,0.0001212,2]
[332610172,1721343366166,287.58562921,0.0001212,2]
[332610173,1721343415831,526.19426647,0.00014691,2]
[332610174,1721343547341,380.3,0.00010959,2]
[332610175,1721343568654,207.758793,0.00015169,2]
[332610176,1721343568872,207.758793,0.00015564,2]
[332610177,1721343625953,3000.0,0.00015002,2]
[332610178,1721343882193,520.096126,0.00014903,2]
[332610180,1721344090925,24900.0,0.00014877,2]
[332610181,1721344170882,159.626465,0.0001499,2]
[332610182,1721344171093,159.626465,0.00015146,2]
[332610183,1721344171319,159.626465,0.00015302,2]
[332610184,1721344171535,159.626465,0.00015458,2]
[332610185,1721344172038,159.626465,0.00015615,2]
[332610186,1721344175849,-206.41505315,0.00015751,2]
[332610188,1721344175883,-951.19313914,0.00015752,2]
[332610191,1721344175921,-544.58878876,0.00015752,2]
[332610237,1721344232036,-6994.73025446,0.00015751,2]
[332610239,1721344232046,-300.28909939,0.00015752,2]
[332610241,1721344232056,-159.626465,0.00015771,2]
[332610243,1721344232065,-292.87195612,0.0001585,2]
[332610245,1721344232076,-7.12804388,0.0001585,2]
[332610247,1721344232086,-300.0,0.0001585,2]
[332610249,1721344232096,-2561.39662296,0.00015851,2]
[332610492,1721344237980,-8038.40612161,0.00015851,2]
[332610494,1721344237990,-17281.13427818,0.00015851,2]
[332610496,1721344238000,-8198.98721847,0.00015851,2]
[332610498,1721344238011,-545.95719881,0.00015851,2]
[332610501,1721344238023,-1178.79318715,0.00015851,2]
[332610503,1721344238034,-25396.23939244,0.00015851,2]
[332610555,1721344240236,-4082.07611011,0.00015851,2]
[332610557,1721344240248,-2900.84163766,0.00015851,2]
[332610559,1721344240257,-191.29734535,0.00015852,2]
[332610561,1721344240266,-391.80627157,0.00015954,2]
[332610563,1721344240276,-1796.07102726,0.0001614,2]
[332610565,1721344240285,-500.0,0.0001616,2]
[332610567,1721344240294,-384.02622919,0.0001616,2]
[332610568,1721344240306,-115.97377081,0.0001616,2]
[332610569,1721344240315,-500.0,0.0001616,2]
[332610570,1721344240324,-500.0,0.0001616,2]
[332610571,1721344240334,-500.0,0.0001616,2]
[332610572,1721344240343,-500.0,0.0001616,2]
[332610573,1721344240353,-500.0,0.0001616,2]
[332610574,1721344240362,-500.0,0.0001616,2]
[332610575,1721344240371,-500.0,0.0001616,2]
[332610576,1721344240381,-500.0,0.0001616,2]
[332610577,1721344240390,-500.0,0.0001616,2]
[332610579,1721344240401,-500.0,0.0001616,2]
[332610582,1721344240412,-500.0,0.0001616,2]
[332610583,1721344240422,-500.0,0.0001616,2]
[332610584,1721344240431,-500.0,0.0001616,2]
[332610585,1721344240440,-554.51493678,0.0001616,2]
[332610587,1721344240451,-572.81364418,0.0001616,2]
[332610588,1721344240461,-500.0,0.0001616,2]
[332610589,1721344240471,-500.0,0.0001616,2]
[332610590,1721344240483,-500.0,0.0001616,2]
[332610591,1721344240493,-500.0,0.0001616,2]
[332610592,1721344240503,-500.0,0.0001616,2]
[332610593,1721344240512,-500.0,0.0001616,2]
[332610594,1721344240521,-359.03645526,0.0001616,2]
[332610595,1721344240531,-500.0,0.0001616,2]
[332610596,1721344240541,-500.0,0.0001616,2]
[332610597,1721344240550,-500.0,0.0001616,2]
[332610598,1721344240560,-500.0,0.0001616,2]
[332610599,1721344240569,-5479.47062839,0.00016161,2]
[332610600,1721344240580,-133337.078941,0.00016162,2]
[332610601,1721344240589,-21278.24130221,0.00016347,2]
[332610602,1721344240599,-307.355155,0.00016438,2]
[332610603,1721344240608,-286.44339364,0.00016527,2]
[332610604,1721344240618,-1796.07102726,0.00016528,2]
[332610605,1721344240627,-1796.07102726,0.00016915,2]
[332610606,1721344240637,-251.74885356,0.000173,2]
[332610607,1721344240646,-1796.07102726,0.00017303,2]
[332610608,1721344240656,-420.0,0.00017332,2]
[332610609,1721344240665,-500.0,0.00017378,2]
[332610610,1721344240675,-293.61579412,0.00017378,2]
[332610611,1721344240684,-500.0,0.00017378,2]
[332610612,1721344240693,-500.0,0.00017378,2]
[332610613,1721344240703,-500.0,0.00017378,2]
[332610614,1721344240713,-500.0,0.00017378,2]
[332610615,1721344240722,-229.89818531,0.00017378,2]
[332610616,1721344240732,-500.0,0.00017378,2]
[332610617,1721344240742,-500.0,0.00017378,2]
[332610618,1721344240753,-500.0,0.00017378,2]
[332610619,1721344240766,-500.0,0.00017378,2]
[332610620,1721344240777,-612.59612344,0.00017378,2]
[332610621,1721344240789,-500.0,0.00017378,2]
[332610622,1721344240800,-500.0,0.00017378,2]
[332610623,1721344240810,-500.0,0.00017378,2]
[332610624,1721344240821,-500.0,0.00017378,2]
[332610625,1721344240832,-500.0,0.00017378,2]
[332610626,1721344240842,-500.0,0.00017378,2]
[332610627,1721344240854,-500.0,0.00017378,2]
[332610628,1721344240864,-500.0,0.00017378,2]
[332610629,1721344240875,-500.0,0.00017378,2]
[332610630,1721344240886,-500.0,0.00017378,2]
[332610631,1721344240897,-500.0,0.00017378,2]
[332610632,1721344240909,-624.73091777,0.00017378,2]
[332610633,1721344240919,-500.0,0.00017378,2]
[332610634,1721344240931,-400.0,0.00017378,2]
[332610635,1721344240941,-500.0,0.00017378,2]
[332610636,1721344240953,-500.0,0.00017378,2]
[332610637,1721344240962,-500.0,0.00017378,2]
[332610638,1721344240973,-500.0,0.00017378,2]
[332610639,1721344240983,-1637.92525676,0.00017378,2]
[332610640,1721344240992,-24968.91407459,0.0001738,2]
[332610641,1721344241021,-500.0,0.0001616,2]
[332610642,1721344241033,-500.0,0.0001616,2]
[332610643,1721344241043,-7611.5865296,0.0001738,2]
[332610644,1721344241055,-9662.93107,0.0001738,2]
[332610649,1721344242990,-938.79019152,0.00015954,2]
[332610651,1721344243681,-8694.45115043,0.00015954,2]
[332610652,1721344243691,-397.86015136,0.0001616,2]
[332610654,1721344243701,-500.0,0.0001616,2]
[332610657,1721344243711,-500.0,0.0001616,2]
[332610659,1721344243722,-500.0,0.0001616,2]
[332610663,1721344243731,-500.0,0.0001616,2]
[332610664,1721344243741,-500.0,0.0001616,2]
[332610666,1721344243751,-500.0,0.0001616,2]
[332610668,1721344243761,-500.0,0.0001616,2]
[332610671,1721344243771,-500.0,0.0001616,2]
[332610672,1721344243781,-500.0,0.0001616,2]
[332610675,1721344243791,-3534.85495964,0.0001738,2]
[332610813,1721344245201,-3039.96855912,0.0001738,2]
[332610900,1721344245999,-405.32256219,0.0001616,2]
[332610902,1721344246011,-94.67743781,0.0001616,2]
[332610904,1721344246022,-500.0,0.0001616,2]
[332610906,1721344246032,-500.0,0.0001616,2]
[332610908,1721344246041,-91.3454309,0.0001616,2]
[332610910,1721344246054,-313.24405252,0.0001616,2]
[332610912,1721344246065,-161.46217685,0.0001616,2]
[332610914,1721344246075,-500.0,0.0001616,2]
[332610915,1721344246085,-59.75768815,0.0001616,2]
[332610916,1721344246132,-440.24231185,0.0001616,2]
[332610917,1721344246142,-2715.65317949,0.0001738,2]
[332611558,1721344314769,7176.44403012,0.0001,2]
[332611559,1721344531593,540.66323809,0.000151,2]
[332611568,1721344916673,260.048063,0.00014972,2]
[332611569,1721344933522,3000.0,0.00014923,2]
[332611571,1721345046258,456.22,0.00014882,2]
[332611586,1721345267756,24900.0,0.00014874,2]
[332611592,1721345326994,-1181.50833802,0.00015713,2]
[332611593,1721345327034,-998.90745043,0.00015713,2]
[332611594,1721345336227,329.18,0.00010959,2]
[332611595,1721345352038,-300.0,0.00015712,2]
[332611596,1721345352068,-300.0,0.00015712,2]
[332611597,1721345352099,-625.11665379,0.00015713,2]
[332611598,1721345352133,-528.48599846,0.00015713,2]
[332611602,1721345354352,500.0,0.0002505,120]
[332611603,1721345376490,2673.02150699,0.00013283,2]
[332611604,1721345377311,-1260.18870683,0.00015712,2]
[332611605,1721345377347,-252.8753147,0.00015712,2]
[332611606,1721345383706,2842.54359995,0.00015,2]
[332611607,1721345401997,-1290.44998726,0.00015711,2]
[332611608,1721345402048,-316.67518171,0.00015711,2]
[332611634,1721345432116,-10000.478215,0.0001571,2]
[332611637,1721345432128,-700.89658288,0.0001571,2]
[332611675,1721345438197,-6579.7594803,0.0001571,2]
[332611676,1721345438207,-530.00102954,0.00015711,2]
[332611677,1721345438217,-300.0,0.00015711,2]
[332611678,1721345438226,-300.0,0.00015711,2]
[332611679,1721345438237,-5511.47943235,0.00015711,2]
[332611680,1721345438248,-5511.47943235,0.00015711,2]
[332611681,1721345438258,-2425.643977,0.00015713,2]
[332611682,1721345438268,-10599.80274457,0.00015714,2]
[332611683,1721345438278,-215.79050159,0.00015751,2]
[332611684,1721345438289,-21278.24130221,0.00015951,2]
[332611685,1721345438299,-2122.77005368,0.00015994,2]
[332611686,1721345438309,-518.73589083,0.00015994,2]
[332611687,1721345438319,-1112.14759989,0.00015995,2]
[332611688,1721345438331,-726.35226996,0.00016159,2]
[332611689,1721345438343,-726.35226996,0.00016159,2]
[332611690,1721345438354,-307.355155,0.00016438,2]
[332611691,1721345438365,-1112.14759988,0.00016727,2]
[332611692,1721345438375,-420.0,0.00017182,2]
[332611693,1721345438385,-200.69098882,0.00017281,2]
[332611694,1721345438396,-154.79103211,0.00017282,2]
[332611695,1721345438407,-155.63751278,0.00017282,2]
[332611696,1721345438418,-420.0,0.00017282,2]
[332611697,1721345438430,-274.60030858,0.00017282,2]
[332611698,1721345438441,-1637.92525676,0.00017379,2]
[332611699,1721345438452,-500.0,0.00017388,2]
[332611700,1721345438463,-500.0,0.00017388,2]
[332611701,1721345438474,-500.0,0.00017388,2]
[332611702,1721345438484,-340.6724067,0.00017388,2]
[332611703,1721345438494,-500.0,0.00017388,2]
[332611704,1721345438503,-500.0,0.00017388,2]
[332611705,1721345438513,-500.0,0.00017388,2]
[332611706,1721345438523,-500.0,0.00017388,2]
[332611707,1721345438532,-500.0,0.00017388,2]
[332611708,1721345438541,-500.0,0.00017388,2]
[332611709,1721345438550,-263.34617208,0.00017388,2]
[332611710,1721345438560,-500.0,0.00017388,2]
[332611711,1721345438569,-500.0,0.00017388,2]
[332611712,1721345438579,-500.0,0.00017388,2]
[332611713,1721345438588,-500.0,0.00017388,2]
[332611714,1721345438597,-500.0,0.00017388,2]
[332611715,1721345438607,-500.0,0.00017388,2]
[332611716,1721345438616,-230.44075946,0.00017388,2]
[332611717,1721345438625,-500.0,0.00017388,2]
[332611718,1721345438634,-500.0,0.00017388,2]
[332611719,1721345438644,-500.0,0.00017388,2]
[332611720,1721345438653,-500.0,0.00017388,2]
[332611721,1721345438662,-496.08592469,0.00017388,2]
[332611722,1721345438672,-500.0,0.00017388,2]
[332611723,1721345438681,-500.0,0.00017388,2]
[332611724,1721345438691,-500.0,0.00017388,2]
[332611725,1721345438703,-500.0,0.00017388,2]
[332611726,1721345438712,-500.0,0.00017388,2]
[332611727,1721345438721,-500.0,0.00017388,2]
[332611728,1721345438731,-500.0,0.00017388,2]
[332611729,1721345438740,-520.52387638,0.00017388,2]
[332611730,1721345438751,-500.0,0.00017388,2]
[332611731,1721345438761,-293.61579412,0.00017389,2]
[332611732,1721345438771,-500.0,0.00017389,2]
[332611733,1721345438782,-500.0,0.00017389,2]
[332611734,1721345438791,-500.0,0.00017389,2]
[332611735,1721345438802,-500.0,0.00017389,2]
[332611736,1721345438813,-500.0,0.00017389,2]
[332611737,1721345438826,-500.0,0.00017389,2]
[332611738,1721345438837,-500.0,0.00017389,2]
[332611739,1721345438848,-388.24372639,0.00017389,2]
[332611740,1721345438858,-346.08156791,0.00017389,2]
[332611741,1721345438870,-500.0,0.00017389,2]
[332611742,1721345438881,-500.0,0.00017389,2]
[332611743,1721345438891,-500.0,0.00017389,2]
[332611744,1721345438903,-500.0,0.00017389,2]
[332611745,1721345438915,-500.0,0.00017389,2]
[332611746,1721345438926,-500.0,0.00017389,2]
[332611747,1721345438935,-396.82139738,0.00017389,2]
[332611748,1721345438946,-500.0,0.00017389,2]
[332611749,1721345438956,-651.35979357,0.00017389,2]
[332611750,1721345438968,-500.0,0.00017389,2]
[332611751,1721345438978,-500.0,0.00017389,2]
[332611752,1721345438988,-500.0,0.00017389,2]
[332611753,1721345438997,-500.0,0.00017389,2]
[332611754,1721345439007,-500.0,0.00017389,2]
[332611755,1721345439017,-500.0,0.00017389,2]
[332611756,1721345439027,-500.0,0.00017389,2]
[332611757,1721345439036,-500.0,0.00017389,2]
[332611758,1721345439045,-500.0,0.00017389,2]
[332611759,1721345439055,-500.0,0.00017389,2]
[332611760,1721345439065,-500.0,0.00017389,2]
[332611761,1721345439074,-500.0,0.00017389,2]
[332611762,1721345439085,-500.0,0.00017389,2]
[332611763,1721345439096,-500.0,0.00017389,2]
[332611764,1721345439106,-500.0,0.00017389,2]
[332611765,1721345439116,-407.77116793,0.00017389,2]
[332611766,1721345439127,-1316.12404801,0.00017389,2]
[332611767,1721345439138,-1316.12404801,0.00017389,2]
[332611768,1721345439149,-1316.12404801,0.00017389,2]
[332611769,1721345439159,-1316.12404801,0.00017389,2]
[332611770,1721345439169,-1316.12404801,0.00017389,2]
[332611771,1721345439180,-500.0,0.00017389,2]
[332611772,1721345439190,-1316.12404801,0.00017389,2]
[332611773,1721345439201,-200.0,0.00017389,2]
[332611774,1721345439211,-500.0,0.00017389,2]
[332611775,1721345439222,-1316.12404801,0.00017389,2]
[332611776,1721345439232,-500.0,0.00017389,2]
[332611777,1721345439243,-1316.12404801,0.00017389,2]
[332611778,1721345439253,-500.0,0.00017389,2]
[332611779,1721345439263,-500.0,0.00017389,2]
[332611780,1721345439275,-1316.12404801,0.00017389,2]
[332611781,1721345439285,-1364.61282873,0.00017389,2]
[332611782,1721345439297,-1364.61282873,0.00017389,2]
[332611783,1721345439307,-1364.61282873,0.00017389,2]
[332611784,1721345439318,-1364.61282873,0.00017389,2]
[332611785,1721345439328,-1364.61282873,0.00017389,2]
[332611786,1721345439338,-1364.61282873,0.00017389,2]
[332611787,1721345439349,-246586.19955202,0.0001739,2]
[332611788,1721345439362,-2783.39066152,0.0001739,2]
[332611803,1721345440139,-2343.07125546,0.0001739,2]
[332611804,1721345440149,-1112.14759988,0.00017459,2]
[332611805,1721345440160,-404.98641819,0.00017599,2]
[332611806,1721345440169,-2212.74742655,0.00017599,2]
[332611807,1721345440179,-154.79103211,0.00017599,2]
[332611808,1721345440191,-1985.0612858,0.000176,2]
[332611809,1721345440201,-342.86146455,0.00017999,2]
[332611810,1721345440210,-215.63158893,0.00018,2]
[332611811,1721345440221,-642.06152906,0.00018182,2]
[332611812,1721345440233,-889.77936757,0.00018189,2]
[332611813,1721345440244,-532.67305812,0.00018189,2]
[332611814,1721345440255,-1112.14759988,0.0001819,2]
[332611815,1721345440266,-4538.92964193,0.00018286,2]
[332611816,1721345440277,-531.42543539,0.00018792,2]
[332611817,1721345440287,-587.0,0.00018792,2]
[332611818,1721345440298,-214.86770114,0.00018792,2]
[332611819,1721345440308,-463.68134874,0.00018792,2]
[332611820,1721345440318,-531.42543539,0.00018793,2]
[332611821,1721345440329,-567.65464644,0.00018793,2]
[332611822,1721345440339,-878.03783403,0.00018794,2]
[332611823,1721345440527,-2286.03950121,0.00018795,2]
[332611824,1721345440538,-1455.95899802,0.00018899,2]
[332611825,1721345440548,-620.39297803,0.000189,2]
[332611826,1721345440558,-1112.14759988,0.00018922,2]
[332611827,1721345440569,-319.21055597,0.00018955,2]
[332611828,1721345440580,-196.15176283,0.00018956,2]
[332611829,1721345440592,-278.19997729,0.00018975,2]
[332611830,1721345440604,-278.19997729,0.00018975,2]
[332611831,1721345440614,-125856.330735,0.00018989,2]
[332611832,1721345440623,-79473.36277202,0.0001899,2]
[332611833,1721345440963,-3500.95434662,0.0001899,2]
[332611834,1721345440975,-491.94098869,0.0001899,2]
[332611861,1721345443171,-348.89256572,0.0001784,2]
[332611874,1721345444390,-133.50035291,0.0001784,2]
[332611875,1721345444401,-319.21055597,0.0001891,2]
[332611876,1721345444411,-196.15176283,0.00018954,2]
[332611877,1721345444422,-257.24476257,0.0001899,2]
[332611888,1721345446302,-5783.68086244,0.00015851,2]
[332611896,1721345468686,3000.0,0.00014843,2]
[332611901,1721345844914,811.12180288,9.999e-05,2]
[332611902,1721345851188,258.9447996,0.00014843,2]
[332611904,1721346055545,3000.0,0.00015354,2]
[332611906,1721346139631,435.529933,0.00015315,2]
[332611912,1721346174651,1048.0,0.0001569,2]
[332611913,1721346180312,349.55736132,0.00015608,2]
[332611916,1721346484290,155.63751278,9.999e-05,2]
[332611921,1721346540284,155.63751278,0.0001212,2]
[332611922,1721346544972,24900.0,0.00014962,2]
[332611923,1721346578734,-300.0,0.00015708,2]
[332611925,1721346578771,-300.0,0.00015708,2]
[332611926,1721346578808,-701.55836718,0.00015709,2]
[332611969,1721346632256,-2473.4069665,0.00015708,2]
[332612028,1721346638217,-369.13663345,0.00015708,2]
[332612030,1721346638226,-300.0,0.00015708,2]
[332612031,1721346638235,-74.86336655,0.00015708,2]
[332612032,1721346638270,-225.13663345,0.00015708,2]
[332612033,1721346638281,-777.36159498,0.00015709,2]
[332612034,1721346638295,-19799.32134005,0.00015709,2]
[332612035,1721346638305,-10599.80274457,0.00015746,2]
[332612036,1721346638316,-3820.30733888,0.00015747,2]
[332612054,1721346640333,-5947.63666042,0.00015747,2]
[332612057,1721346640345,-1546.1335093,0.00015747,2]
[332612059,1721346640358,-5967.05676958,0.00015747,2]
[332612061,1721346640367,-460.62322756,0.00015952,2]
[332612063,1721346640379,-480.49462787,0.00015952,2]
[332612065,1721346640388,-653.00674516,0.00015954,2]
[332612067,1721346640400,-225.03108887,0.00015954,2]
[332612069,1721346640410,-493.4297034,0.00016058,2]
[332612071,1721346640420,-493.4297034,0.00016058,2]
[332612073,1721346640432,-677.10554515,0.00016059,2]
[332612074,1721346640442,-4538.92964193,0.00016095,2]
[332612075,1721346640451,-154.79103211,0.00016198,2]
[332612076,1721346640460,-2286.03950121,0.00016198,2]
[332612079,1721346640471,-889.77936757,0.00016347,2]
[332612081,1721346640480,-166.666666,0.00016438,2]
[332612083,1721346640489,-677.10554511,0.00016744,2]
[332612085,1721346640498,-420.0,0.00017179,2]
[332612087,1721346640508,-1455.95899802,0.0001727,2]
[332612089,1721346640517,-196.15176283,0.0001727,2]
[332612091,1721346640526,-531.42543539,0.00017271,2]
[332612093,1721346640536,-1185.61348276,0.00017272,2]
[332612094,1721346640544,-420.0,0.00017279,2]
[332612096,1721346640554,-463.68134874,0.00017379,2]
[332612098,1721346640563,-319.42400333,0.00017379,2]
[332612100,1721346640572,-5511.47943235,0.00017389,2]
[332612102,1721346640581,-677.10554511,0.0001743,2]
[332612105,1721346640590,-2425.643977,0.0001784,2]
[332612106,1721346640599,-2122.77005368,0.0001788,2]
[332612108,1721346640609,-278.19997729,0.00017882,2]
[332612110,1721346640617,-677.10554511,0.00018115,2]
[332612112,1721346640626,-156.00277242,0.00018135,2]
[332612114,1721346640636,-76.02669161,0.00018695,2]
[332612117,1721346640648,-423.97330839,0.00018695,2]
[332612119,1721346640659,-280.05820849,0.00018695,2]
[332612121,1721346640668,-610.67621385,0.00018695,2]
[332612123,1721346640677,-592.25709754,0.00018696,2]
[332612125,1721346640687,-205.53105588,0.00018696,2]
[332612127,1721346640696,-500.0,0.00018696,2]
[332612129,1721346640705,-500.0,0.00018696,2]
[332612131,1721346640715,-500.0,0.00018696,2]
[332612133,1721346640724,-500.0,0.00018696,2]
[332612135,1721346640734,-500.0,0.00018696,2]
[332612137,1721346640743,-500.0,0.00018696,2]
[332612139,1721346640753,-500.0,0.00018696,2]
[332612141,1721346640762,-500.0,0.00018696,2]
[332612143,1721346640772,-635.43981755,0.00018696,2]
[332612145,1721346640781,-327.77497817,0.00018696,2]
[332612147,1721346640790,-500.0,0.00018696,2]
[332612149,1721346640799,-500.0,0.00018696,2]
[332612151,1721346640809,-355.9518555,0.00018696,2]
[332612153,1721346640818,-500.0,0.00018696,2]
[332612155,1721346640828,-500.0,0.00018696,2]
[332612157,1721346640838,-500.0,0.00018696,2]
[332612159,1721346640847,-500.0,0.00018696,2]
[332612161,1721346640856,-500.0,0.00018696,2]
[332612162,1721346640866,-500.0,0.00018696,2]
[332612164,1721346640875,-500.0,0.00018696,2]
[332612166,1721346640885,-564.17060847,0.00018696,2]
[332612167,1721346640895,-500.0,0.00018696,2]
[332612168,1721346640904,-500.0,0.00018696,2]
[332612170,1721346640913,-500.0,0.00018696,2]
[332612171,1721346640925,-500.0,0.00018696,2]
[332612173,1721346640934,-500.0,0.00018696,2]
[332612175,1721346640945,-500.0,0.00018696,2]
[332612176,1721346640954,-500.0,0.00018696,2]
[332612178,1721346640966,-500.0,0.00018696,2]
[332612180,1721346640977,-500.0,0.00018696,2]
[332612182,1721346640987,-247.6,0.00018696,2]
[332612183,1721346640998,-500.0,0.00018696,2]
[332612185,1721346641008,-500.0,0.00018696,2]
[332612187,1721346641019,-500.0,0.00018696,2]
[332612188,1721346641030,-750.32334997,0.00018696,2]
[332612190,1721346641041,-750.32334997,0.00018696,2]
[332612192,1721346641052,-750.32334997,0.00018696,2]
[332612194,1721346641062,-750.32334998,0.00018696,2]
[332612195,1721346641071,-750.32334997,0.00018696,2]
[332612197,1721346641080,-750.32334997,0.00018696,2]
[332612199,1721346641091,-750.32334997,0.00018696,2]
[332612201,1721346641101,-750.32334997,0.00018696,2]
[332612203,1721346641110,-750.32334997,0.00018696,2]
[332612204,1721346641119,-750.32334997,0.00018696,2]
[332612206,1721346641131,-750.32334997,0.00018696,2]
[332612207,1721346641143,-750.32334997,0.00018696,2]
[332612208,1721346641154,-750.32334997,0.00018696,2]
[332612209,1721346641163,-831.02673356,0.00018696,2]
[332612210,1721346641172,-831.02673356,0.00018696,2]
[332612211,1721346641184,-831.02673356,0.00018696,2]
[332612212,1721346641193,-831.02673356,0.00018696,2]
[332612213,1721346641204,-68584.97094706,0.00018697,2]
[332612214,1721346641216,-223365.67845523,0.00018697,2]
[332612215,1721346641227,-20229.87610892,0.00018697,2]
[332612255,1721346643454,-264.46625028,0.00018697,2]
[332612265,1721346644242,-615.3,0.00018697,2]
[332612266,1721346644254,-4023.27085349,0.00018697,2]
[332612284,1721346646512,-716.68924705,0.00015745,2]
[332612285,1721346646525,-1000.0,0.00015745,2]
[332612286,1721346646537,-3067.77538805,0.00015745,2]
[332612287,1721346646548,-564.66388867,0.00015745,2]
[332612288,1721346646559,-793.41632471,0.00015745,2]
[332612289,1721346766487,467.90530837,0.00015608,2]
[332612290,1721346774710,191.29734535,0.00015608,2]
[332612292,1721346897171,6000.0,0.00024,60]
[332612296,1721347181055,24900.0,0.00015389,2]
[332612297,1721347199638,3000.0,0.00015389,2]
[332612306,1721347307107,217.764966,0.00015329,2]
[332612307,1721347424970,409.4070714,0.00015346,2]
[332612311,1721347720386,-300.0,0.00015708,2]
[332612312,1721347720417,-300.0,0.00015708,2]
[332612313,1721347720447,-384.87581077,0.00015709,2]
[332612314,1721347725016,-16896.25846741,0.00015709,2]
[332612315,1721347725051,-42302.89474464,0.00015709,2]
[332612318,1721347765029,276.51,0.00010959,2]
[332612319,1721347775303,230.43,0.00010959,2]
[332612320,1721347785798,192.02,0.00010959,2]
[332612321,1721347796348,160.02,0.00010959,2]
[332612322,1721347806858,125.89581077,0.00010959,2]
[332612323,1721347806887,674.23418923,0.00010959,2]
[332612374,1721347832439,-586.3147193,0.00015948,2]
[332612375,1721347832449,-282.1752807,0.00016038,2]
[332612433,1721347838417,-17.8247193,0.00016038,2]
[332612434,1721347838427,-300.0,0.00016038,2]
[332612435,1721347838437,-2225.83695635,0.00016039,2]
[332612437,1721347838928,-12907.36496479,0.00016039,2]
[332612438,1721347838942,-9766.79807886,0.00016039,2]
[332612439,1721347838953,-532.67305812,0.00016137,2]
[332612440,1721347838963,-3863.74984843,0.00016138,2]
[332612441,1721347838973,-2594.67674997,0.00016209,2]
[332612442,1721347838983,-248.68489287,0.00016309,2]
[332612443,1721347838995,-166.666666,0.00016438,2]
[332612444,1721347839005,-3863.74984843,0.00016799,2]
[332612445,1721347839015,-518.73589083,0.00017379,2]
[332612446,1721347839026,-21278.24130221,0.00017389,2]
[332612447,1721347839035,-567.65464644,0.00017403,2]
[332612448,1721347839045,-2594.67674991,0.00017423,2]
[332612449,1721347839056,-106632.55328,0.00017455,2]
[332612450,1721347839066,-3863.74984843,0.00017461,2]
[332612451,1721347839077,-420.0,0.00017534,2]
[332612452,1721347839087,-420.0,0.00017642,2]
[332612453,1721347839097,-3863.74984843,0.00018122,2]
[332612454,1721347839108,-4410.5917882,0.000184,2]
[332612455,1721347839119,-154.80649189,0.00018432,2]
[332612456,1721347839130,-150.58668022,0.00018433,2]
[332612457,1721347839139,-491.96980821,0.00018511,2]
[332612458,1721347839149,-5479.47062839,0.00018512,2]
[332612459,1721347839159,-846.74633042,0.00018532,2]
[332612460,1721347839168,-337.10262663,0.00018533,2]
[332612461,1721347839178,-156.28958,0.00018555,2]
[332612462,1721347839188,-154.80649189,0.00018556,2]
[332612463,1721347839200,-2594.67674991,0.00018637,2]
[332612464,1721347839209,-201.63116445,0.00018696,2]
[332612465,1721347839219,-156.12137142,0.00018739,2]
[332612466,1721347839228,-309.24270791,0.00018739,2]
[332612467,1721347839238,-106632.55328,0.0001874,2]
[332612468,1721347839248,-414.57996828,0.00018748,2]
[332612469,1721347839257,-444.80787228,0.00018748,2]
[332612470,1721347839268,-500.0,0.00018748,2]
[332612471,1721347839277,-500.0,0.00018748,2]
[332612472,1721347839287,-500.0,0.00018748,2]
[332612473,1721347839296,-430.47182778,0.00018748,2]
[332612474,1721347839305,-500.0,0.00018748,2]
[332612475,1721347839314,-500.0,0.00018748,2]
[332612476,1721347839324,-500.0,0.00018748,2]
[332612477,1721347839333,-429.44248472,0.00018748,2]
[332612478,1721347839343,-500.0,0.00018748,2]
[332612479,1721347839352,-500.0,0.00018748,2]
[332612480,1721347839362,-500.0,0.00018748,2]